bitfinex/quotes_ETHUSD_20220118
["timestamp","ask_amount","ask_price","bid_price","bid_amount"]
[1642494245660,0.00113685,3160.2,3160.1,0.38]
[1642494245858,1.42721487,3161.2,3160.2,3.54802103]
[1642494246058,1.42721487,3161.2,3160.3,1.38]
[1642494246260,0.00454739,3161.0,3160.3,1.38]
[1642494246463,0.00454739,3161.0,3160.3,0.38]
[1642494246661,0.00397896,3160.9,3160.3,0.38]
[1642494247063,0.00341054,3160.8,3160.3,0.38]
[1642494247464,2.70469748,3161.1,3160.3,0.38]
[1642494247465,0.00284212,3160.7,3160.3,0.38]
[1642494247864,0.00227369,3160.6,3160.3,0.38]
[1642494248065,0.00227369,3160.6,3160.4,1.50517787]
[1642494248303,0.00170527,3160.5,3160.4,1.50517787]
[1642494248702,0.00511581,3160.5,3160.4,1.50517787]
[1642494248902,0.00511581,3160.5,3160.4,1.88517787]
[1642494250309,0.00511581,3160.5,3160.2,0.49902103]
[1642494250507,0.1265,3160.4,3160.2,0.49902103]
[1642494250706,0.12763685,3160.4,3160.2,0.49902103]
[1642494251106,1.45783352,3160.3,3160.2,0.49902103]
[1642494251308,3.20873113,3160.3,3160.2,0.49902103]
[1642494251514,3.20873113,3160.3,3160.2,2.103e-05]
[1642494251515,7.10783352,3160.3,3160.2,2.103e-05]
[1642494251713,0.31295031,3160.3,3160.2,2.103e-05]
[1642494252178,0.31295031,3160.3,3159.5,0.00170528]
[1642494252567,3.01839282,3160.3,3159.7,1.53692986]
[1642494252869,1.32168347,3160.0,3159.8,0.00227369]
[1642494253269,0.1265,3159.9,3159.8,0.00227369]
[1642494253468,0.1265,3159.9,3158.8,0.00795793]
[1642494254273,1.51722278,3159.4,3158.8,0.00795793]
[1642494254673,0.1265,3159.3,3158.8,0.00795793]
[1642494255068,0.1265,3159.3,3159.0,1.32378017]
[1642494255469,0.1265,3159.3,3158.1,0.38]
[1642494255910,0.1265,3159.3,3158.2,0.00511581]
[1642494256710,1.3295783,3158.9,3158.4,1.42087941]
[1642494257115,1.6295783,3158.9,3158.5,0.00341054]
[1642494257316,0.03364011,3159.0,3158.5,0.00341054]
[1642494257515,0.15851455,3159.9,3158.5,0.00341054]
[1642494257716,0.1265,3159.9,3158.5,3.08670049]
[1642494257919,0.1265,3159.9,3158.6,0.38]
[1642494257920,0.00397897,3159.8,3158.6,0.38]
[1642494258115,0.00397897,3159.8,3158.6,19.76284212]
[1642494258316,0.00341054,3159.7,3158.9,1.3938964]
[1642494258517,0.00341054,3159.7,3159.0,1.79205271]
[1642494258716,1.49150238,3160.1,3159.0,1.79205271]
[1642494258717,0.00284212,3159.6,3159.0,2.79205271]
[1642494259118,0.00227369,3159.5,3159.1,1.0]
[1642494259318,0.00227369,3159.5,3159.2,0.38]
[1642494259570,0.00170527,3159.4,3159.2,0.38]
[1642494259966,0.00113685,3159.3,3159.2,0.38]
[1642494260764,0.00113685,3159.3,3159.2,0.33]
[1642494262370,0.00113685,3159.3,3158.7,0.00567095]
[1642494262771,0.00113685,3159.3,3158.8,0.00170527]
[1642494263203,0.00113685,3159.3,3158.9,1.09678792]
[1642494263406,0.00113685,3159.3,3158.8,0.00170527]
[1642494263607,1.3022226,3159.2,3158.8,0.00170527]
[1642494264310,1.3022226,3159.2,3158.6,0.00284212]
[1642494264510,2.97463365,3159.1,3158.6,0.00284212]
[1642494264712,0.1265,3159.1,3158.6,0.00284212]
[1642494264909,1.16436733,3158.6,3158.1,0.00568423]
[1642494265509,1.16436733,3158.6,3157.9,1.69940253]
[1642494265711,1.46436733,3158.6,3157.9,0.49902103]
[1642494265912,0.00227369,3158.5,3157.9,0.49902103]
[1642494266111,0.12877369,3158.5,3157.9,0.49902103]
[1642494266313,0.00170527,3158.4,3157.9,0.49902103]
[1642494266513,1.10414823,3158.1,3157.9,0.49902103]
[1642494266715,1.83224823,3158.1,3157.9,0.49902103]
[1642494266966,2.13224823,3158.1,3157.9,0.49902103]
[1642494267169,0.1265,3158.0,3157.9,0.49902103]
[1642494267371,0.1265,3158.0,3156.9,7.1335996]
[1642494267372,3.2765,3158.0,3156.9,7.5135996]
[1642494267568,0.4265,3158.0,3157.9,0.00113685]
[1642494267971,1.5091446,3158.0,3157.9,0.00113685]
[1642494268168,1.8091446,3158.0,3157.9,0.00113685]
[1642494268771,1.8091446,3158.0,3157.4,0.00397897]
[1642494269975,1.8091446,3158.0,3157.0,0.00625266]
[1642494270172,1.11542621,3157.1,3156.7,0.00795793]
[1642494270372,0.4265,3158.0,3156.7,0.00795793]
[1642494270373,0.03665081,3157.2,3156.7,0.00795793]
[1642494270572,0.1265,3158.0,3156.9,1.1218762]
[1642494270808,0.4265,3158.0,3156.9,1.1218762]
[1642494271008,0.1265,3158.0,3157.0,0.00625266]
[1642494271207,0.1265,3158.2,3157.0,0.00625266]
[1642494271410,1.17196879,3157.3,3157.0,0.00625266]
[1642494271609,0.1265,3157.2,3157.0,0.00625266]
[1642494271812,0.1265,3157.2,3156.3,0.01023163]
[1642494272211,0.1265,3157.2,3156.6,1.32928439]
[1642494272616,0.1265,3157.2,3156.7,0.00795793]
[1642494273611,0.1265,3157.2,3156.0,0.0119369]
[1642494275461,0.1265,3157.2,3156.4,1.12200104]
[1642494275663,0.1265,3157.2,3156.0,0.0119369]
[1642494275664,1.08588503,3156.5,3156.0,0.0119369]
[1642494275867,1.08588503,3156.5,3155.6,0.00337424]
[1642494275868,0.01235709,3156.1,3155.6,0.00337424]
[1642494276067,0.01235709,3156.1,3154.3,1.10553081]
[1642494276068,0.01275307,3155.7,3154.3,1.10553081]
[1642494276267,0.1267,3155.6,3154.3,1.10553081]
[1642494276663,0.31200427,3155.8,3154.4,1.49830052]
[1642494276864,0.31200427,3155.8,3155.7,1.44059378]
[1642494276865,0.01200427,3155.8,3155.7,1.44059378]
[1642494277065,2.74553726,3156.4,3154.5,0.02046325]
[1642494277066,0.1267,3156.3,3154.5,0.02046325]
[1642494277467,0.1267,3156.3,3154.3,0.0216001]
[1642494277672,1.2156,3156.7,3154.8,0.01292664]
[1642494277868,1.2156,3156.7,3154.9,0.38]
[1642494278065,1.2156,3156.7,3155.0,1.47425334]
[1642494278311,1.2156,3156.7,3155.0,1.87187447]
[1642494278513,1.2156,3156.7,3156.0,0.37411499]
[1642494278514,1.3423,3156.7,3156.0,0.37411499]
[1642494278713,0.1267,3156.7,3155.1,0.01705271]
[1642494278913,0.1267,3156.7,3156.1,0.01136847]
[1642494279113,0.1267,3157.0,3156.3,1.20143574]
[1642494279514,0.1267,3157.0,3156.4,0.0096632]
[1642494279714,5.44024079,3157.2,3156.4,0.0096632]
[1642494279715,0.1267,3157.1,3156.4,0.0096632]
[1642494280116,0.1267,3157.2,3156.4,0.0096632]
[1642494280813,1.710713,3157.2,3155.3,0.01591586]
[1642494281014,0.16179819,3157.2,3155.3,0.01591586]
[1642494281215,0.16179819,3157.2,3155.2,0.5]
[1642494281216,0.1267,3157.2,3155.2,0.5]
[1642494281416,0.1267,3157.2,3156.6,1.46910621]
[1642494281614,1.10162869,3157.1,3156.6,1.46910621]
[1642494281813,0.1267,3157.0,3156.7,0.00795793]
[1642494282679,2.23725357,3156.9,3156.7,0.00795793]
[1642494282883,0.1267,3156.8,3156.7,0.00795793]
[1642494283081,0.4267,3156.8,3155.4,0.38]
[1642494283280,2.23725357,3156.9,3155.4,0.38]
[1642494283480,4.19257728,3156.8,3155.5,0.01477901]
[1642494284082,4.19257728,3156.8,3156.0,0.37411499]
[1642494284482,0.3,3156.8,3156.1,0.01136847]
[1642494284881,4.49257728,3156.9,3156.1,0.01136847]
[1642494285284,4.49257728,3156.9,3156.2,1.51263655]
[1642494285487,2.70808886,3156.7,3156.2,1.51263655]
[1642494285706,3.00808886,3156.7,3156.3,0.01023163]
[1642494286511,3.00808886,3156.8,3156.3,0.01023163]
[1642494287316,2.70808886,3156.8,3156.3,0.01023163]
[1642494287520,2.70808886,3156.6,3156.3,0.39023163]
[1642494287914,2.70808886,3156.6,3156.4,0.0096632]
[1642494288516,2.23725357,3157.2,3156.5,3.8]
[1642494288717,2.98177972,3157.4,3156.7,5.35]
[1642494288718,1.48716137,3157.4,3156.7,5.35]
[1642494288918,1.48716137,3157.4,3156.7,5.73]
[1642494289117,1.48716137,3157.4,3156.9,0.08935335]
[1642494289317,1.48716137,3157.4,3157.0,0.38]
[1642494289564,1.48716137,3157.4,3157.1,0.48222793]
[1642494289763,1.48716137,3157.4,3157.1,0.38568424]
[1642494289963,2.23725357,3157.6,3157.2,0.00511581]
[1642494290163,0.07178728,3157.4,3157.2,0.00511581]
[1642494291577,0.07178728,3157.4,3157.3,0.38]
[1642494291771,0.07178728,3157.4,3157.3,1.2333]
[1642494291969,2.23725357,3158.2,3157.3,1.2333]
[1642494291970,2.23725357,3158.2,3157.3,1.23784739]
[1642494292169,2.23725357,3158.2,3157.8,1.30850361]
[1642494292371,2.23725357,3158.2,3157.9,1.87279373]
[1642494292568,2.23725357,3158.2,3157.9,1.87393058]
[1642494293206,0.00113684,3158.3,3158.0,5.35]
[1642494293412,0.00113684,3158.3,3158.1,0.38]
[1642494293611,0.00113684,3158.3,3158.1,1.38]
[1642494293808,0.00113684,3158.3,3158.1,1.38388431]
[1642494294008,0.00113684,3158.3,3158.1,0.38388431]
[1642494294211,0.00113684,3158.3,3158.1,1.42778431]
[1642494294810,2.98177972,3158.7,3158.2,5.05]
[1642494295010,0.03929687,3158.8,3158.3,1.38]
[1642494295210,0.00170527,3158.6,3158.4,0.38]
[1642494295610,0.00113685,3158.5,3158.4,0.38]
[1642494295809,0.00113685,3158.5,3158.4,1.50917973]
[1642494296014,3.10827972,3159.2,3158.5,5.35]
[1642494296412,3.10827972,3159.2,3158.4,2.36086522]
[1642494296413,3.10827972,3159.2,3158.6,1.3822737]
[1642494296611,0.1265,3159.2,3158.7,0.38]
[1642494296810,0.1265,3159.2,3158.7,0.38170527]
[1642494297059,2.98177972,3159.4,3158.9,1.16944413]
[1642494297457,0.00170527,3159.3,3158.9,1.16944413]
[1642494297657,0.00170527,3159.3,3159.0,0.38]
[1642494297858,2.98177972,3159.4,3159.1,5.35]
[1642494298058,1.49703996,3159.9,3159.2,1.38]
[1642494298263,1.62353996,3159.9,3159.2,1.38]
[1642494298462,0.00284212,3159.8,3159.2,1.38]
[1642494298666,0.00284212,3159.8,3159.2,0.38]
[1642494298862,0.00227369,3159.7,3159.2,0.38]
[1642494299264,0.00170527,3159.6,3159.2,0.38]
[1642494299467,0.1265,3160.2,3159.3,5.35]
[1642494299666,0.1265,3160.3,3159.4,1.38]
[1642494299864,0.00113685,3159.8,3159.5,3.05547178]
[1642494300065,0.00113685,3159.8,3159.6,1.88]
[1642494300269,1.49703996,3160.4,3159.7,3.08401769]
[1642494300271,1.62353996,3160.4,3159.7,3.08401769]
[1642494300464,1.62353996,3160.4,3159.8,0.38]
[1642494300465,1.49703996,3160.4,3159.8,0.38]
[1642494300722,0.00227369,3160.2,3159.9,4.1709311]
[1642494300910,0.00227369,3160.2,3160.0,0.38]
[1642494301107,0.00170527,3160.1,3160.0,0.38]
[1642494301321,0.00170527,3160.1,3160.0,0.28]
[1642494301515,0.00170527,3160.1,3159.9,1.13762978]
[1642494301712,0.00170527,3160.1,3159.6,0.00113685]
[1642494301912,0.12763684,3160.0,3159.6,0.00113685]
[1642494302113,1.32266088,3159.8,3159.4,0.0022737]
[1642494302311,0.45611567,3160.2,3159.2,0.00341055]
[1642494302512,0.3,3160.2,3159.2,0.00454739]
[1642494302711,0.3,3160.2,3159.3,1.16946109]
[1642494303011,0.0022737,3160.4,3160.0,1.28864914]
[1642494303214,1.49703996,3160.1,3160.0,1.28864914]
[1642494304463,0.03359904,3160.2,3159.4,0.00720071]
[1642494304664,0.00170527,3160.3,3159.4,0.00720071]
[1642494304963,0.00113685,3160.2,3159.5,0.00284212]
[1642494305164,1.28797827,3160.1,3159.5,0.00284212]
[1642494305364,0.1265,3160.0,3159.9,1.3701281]
[1642494305567,0.1265,3160.0,3159.5,0.00284212]
[1642494306671,2.97491789,3160.0,3159.5,0.00284212]
[1642494307071,4.40560865,3160.0,3159.5,0.00284212]
[1642494307274,3.57491789,3160.0,3159.5,0.00284212]
[1642494307573,1.50420886,3159.9,3159.5,0.00284212]
[1642494307770,3.32642412,3159.8,3159.5,0.00284212]
[1642494307969,0.78474411,3159.0,3158.3,1.36835039]
[1642494308225,0.78474411,3159.0,3157.5,4.41109163]
[1642494308226,1.13555557,3157.9,3157.5,4.28459163]
[1642494308418,5.03721761,3158.9,3157.5,1.10553081]
[1642494308419,0.03845055,3158.0,3157.5,1.10553081]
[1642494308616,0.1265,3157.9,3156.9,0.1265]
[1642494308815,2.71497716,3158.8,3156.9,0.1265]
[1642494308816,0.1265,3158.7,3156.9,0.1265]
[1642494309217,0.1265,3158.8,3156.9,0.1265]
[1642494309418,1.46804901,3158.6,3156.9,1.28644552]
[1642494309618,1.46804901,3158.6,3157.0,0.1265]
[1642494309619,0.1265,3158.5,3157.0,0.1265]
[1642494309817,0.1265,3158.5,3157.1,0.5]
[1642494310017,0.1265,3158.5,3157.2,0.1265]
[1642494310219,0.3,3158.6,3157.7,1.44442255]
[1642494310420,0.1265,3158.6,3157.7,1.44442255]
[1642494310622,2.70650613,3158.4,3157.8,0.13616319]
[1642494311020,2.70650613,3158.4,3157.9,0.00909477]
[1642494311220,2.70650613,3158.4,3158.0,0.1265]
[1642494311420,2.70650613,3158.4,3158.1,0.38]
[1642494311628,6.33639764,3159.3,3158.2,5.35]
[1642494311824,0.01989687,3159.3,3158.3,0.38]
[1642494312059,0.01989687,3159.3,3158.4,3.31864124]
[1642494312261,0.01989687,3159.3,3158.5,0.38]
[1642494312559,0.01989687,3159.3,3158.7,1.1859332]
[1642494312762,0.01989687,3159.3,3158.7,1.5659332]
[1642494312961,0.01989687,3159.3,3158.8,0.00397896]
[1642494313761,0.01989687,3159.3,3159.1,0.5]
[1642494314164,0.01989687,3159.3,3159.2,4.77021576]
[1642494314361,0.01989687,3159.3,3159.2,1.17021576]
[1642494314960,0.1265,3159.4,3159.2,1.17021576]
[1642494314961,0.04639687,3159.4,3159.3,2.65]
[1642494315367,0.04639687,3159.4,3159.3,0.50113684]
[1642494316216,0.04639687,3159.4,3159.3,0.00113684]
[1642494316820,0.00113685,3159.7,3159.4,0.45360313]
[1642494317217,0.00113685,3159.7,3159.3,0.00113684]
[1642494318918,1.4922721,3160.3,3159.3,0.00113684]
[1642494319122,0.1266,3159.6,3159.3,0.00227369]
[1642494319322,3.23853679,3160.2,3159.3,0.00227369]
[1642494319563,0.4265,3160.2,3159.3,0.00227369]
[1642494319765,1.4922721,3159.8,3159.3,0.00227369]
[1642494319965,1.19895601,3159.6,3159.3,0.00227369]
[1642494320369,0.15842354,3159.7,3159.3,0.00227369]
[1642494320566,1.4922721,3159.8,3159.3,0.00227369]
[1642494320567,0.3,3159.6,3159.3,0.00227369]
[1642494320967,1.7922721,3159.8,3159.3,0.00227369]
[1642494321169,1.4922721,3159.8,3159.3,0.00227369]
[1642494321570,0.3,3159.8,3159.3,0.00227369]
[1642494321767,0.1265,3160.0,3159.3,0.00227369]
[1642494321768,0.1265,3160.0,3159.3,0.38227369]
[1642494321972,0.0022737,3160.1,3159.3,0.38227369]
[1642494322168,0.00113685,3159.9,3159.4,0.00170527]
[1642494322369,0.00170527,3160.0,3159.4,0.00170527]
[1642494322568,0.0022737,3160.1,3159.4,0.00170527]
[1642494322768,0.00113685,3159.9,3159.4,0.00170527]
[1642494322973,0.27639994,3160.7,3159.4,0.00170527]
[1642494322974,0.00170527,3160.0,3159.4,0.00170527]
[1642494323207,0.0022737,3160.1,3159.6,18.38]
[1642494323411,0.00113685,3159.9,3159.7,0.5065]
[1642494323609,1.6187721,3160.5,3159.8,1.52975226]
[1642494323610,0.00170527,3160.0,3159.8,1.52975226]
[1642494323809,0.00397897,3160.4,3159.9,5.7565]
[1642494324010,1.6187721,3160.5,3159.9,5.7565]
[1642494324210,0.03047437,3160.6,3159.9,5.7565]
[1642494324411,1.4922721,3160.9,3160.0,1.0]
[1642494324615,1.4922721,3160.9,3160.2,0.49960313]
[1642494324812,1.4922721,3160.9,3160.3,4.18]
[1642494324813,0.00397897,3160.4,3160.3,4.18]
[1642494325010,0.00397897,3160.4,3160.3,0.38]
[1642494325211,0.00397897,3160.4,3160.3,1.38]
[1642494325411,0.00397897,3160.4,3160.3,1.57904679]
[1642494328865,0.00397897,3160.4,3160.3,1.19904679]
[1642494329264,0.00397897,3160.4,3160.0,0.1265]
[1642494329664,0.00341054,3160.3,3159.4,4.10750527]
[1642494329869,0.00341054,3160.3,3159.4,0.38170527]
[1642494330068,0.00284212,3160.2,3159.5,0.00113685]
[1642494330265,0.00284212,3160.2,3159.6,1.3918998]
[1642494330465,0.3,3160.4,3159.6,1.3918998]
[1642494330466,0.0022737,3160.1,3159.6,1.3918998]
[1642494330711,0.0022737,3160.1,3159.6,0.1265]
[1642494330912,0.00170527,3160.0,3159.5,0.50073998]
[1642494331313,0.00113685,3159.9,3159.5,0.50073998]
[1642494331513,0.00113685,3159.9,3159.5,0.62723998]
[1642494331711,0.00284212,3160.2,3159.6,1.44554377]
[1642494331910,0.00284212,3160.2,3159.7,0.38]
[1642494332117,0.0022737,3160.1,3159.7,0.38]
[1642494332520,2.60713311,3160.5,3159.7,0.38]
[1642494332717,2.60713311,3160.5,3159.8,4.25]
[1642494332916,0.0022737,3160.4,3159.8,4.63113685]
[1642494333315,0.00170527,3160.3,3159.8,4.63113685]
[1642494333516,0.00170527,3160.3,3159.8,0.38113685]
[1642494333716,0.00113685,3160.2,3160.0,0.49960313]
[1642494334021,0.00511581,3160.9,3160.0,0.49960313]
[1642494334216,0.00511581,3160.9,3160.7,1.47479616]
[1642494334478,0.00454739,3160.8,3160.7,1.47479616]
[1642494335873,1.4922721,3161.5,3160.8,5.35]
[1642494336071,1.4509721,3161.5,3160.9,1.38]
[1642494336274,0.00284212,3161.3,3160.9,1.38]
[1642494336471,0.00284212,3161.3,3160.9,0.38]
[1642494336673,1.4509721,3161.5,3160.9,0.38]
[1642494336674,0.00227369,3161.2,3160.9,0.38]
[1642494337076,0.00170527,3161.1,3161.0,1.10074491]
[1642494337273,0.00170527,3161.1,3161.0,1.48074491]
[1642494340015,0.1265,3161.9,3161.1,3.75]
[1642494340218,0.1265,3161.9,3161.1,0.9184]
[1642494340413,0.00341054,3161.7,3161.1,0.9184]
[1642494340612,0.00341054,3161.7,3161.1,1.2984]
[1642494340813,0.13275266,3162.2,3161.1,1.79800313]
[1642494341117,0.00284212,3161.6,3161.1,1.79800313]
[1642494341313,1.79674971,3161.9,3161.1,1.79800313]
[1642494341515,0.00227369,3161.5,3161.1,1.79800313]
[1642494341815,0.16524148,3162.0,3161.1,1.79800313]
[1642494341816,0.00170527,3161.4,3161.1,1.79800313]
[1642494342064,0.00170527,3161.4,3161.1,2.2984]
[1642494342264,2.25436748,3162.4,3161.1,2.2984]
[1642494342265,0.00113685,3161.3,3161.1,1.2984]
[1642494342463,0.00113685,3161.3,3161.1,0.38]
[1642494342664,0.1265,3162.1,3161.4,0.49846628]
[1642494343064,0.13104739,3162.1,3161.4,0.49846628]
[1642494343665,0.13104739,3162.1,3161.6,1.37184938]
[1642494343976,0.00454739,3162.1,3161.6,1.37184938]
[1642494345373,0.00454739,3162.1,3161.7,0.1106183]
[1642494345717,2.3368018,3162.1,3161.7,0.1106183]
[1642494345917,2.6368018,3162.1,3161.7,0.1106183]
[1642494346617,2.6368018,3162.1,3161.7,0.0106183]
[1642494347119,2.6368018,3162.1,3161.7,0.51008458]
[1642494347318,0.3,3162.0,3161.7,0.51008458]
[1642494347518,0.1265,3162.0,3161.7,0.51008458]
[1642494347719,0.00341054,3161.9,3161.7,0.0106183]
[1642494348119,0.00284211,3161.8,3161.7,0.0106183]
[1642494348320,1.25958299,3161.8,3161.7,0.0106183]
[1642494348524,0.30284211,3161.8,3161.7,0.0106183]
[1642494348821,0.00284211,3161.8,3161.7,0.0106183]
[1642494349474,0.00284211,3161.8,3161.5,0.0106183]
[1642494349865,0.00227369,3161.7,3161.5,0.0106183]
[1642494350266,0.00170527,3161.6,3161.5,0.0106183]
[1642494352976,0.00170527,3161.6,3161.5,0.4666183]
[1642494353422,0.00170527,3161.6,3161.5,0.7666183]
[1642494353622,0.00170527,3161.6,3161.5,0.3106183]
[1642494354025,0.00170527,3161.6,3161.5,0.7666183]
[1642494354625,2.70422539,3162.0,3161.6,0.49776101]
[1642494354823,2.70422539,3162.0,3161.7,0.456]
[1642494355023,0.00170527,3161.9,3161.7,0.756]
[1642494355424,2.70422539,3162.0,3161.7,0.456]
[1642494355425,0.00113684,3161.8,3161.7,0.456]
[1642494355627,0.00113684,3161.8,3161.7,0.4666183]
[1642494355824,0.00113684,3161.8,3161.7,0.3666183]
[1642494357462,0.00113684,3161.8,3161.7,0.0106183]
[1642494357867,0.00113684,3161.8,3161.5,0.49976101]
[1642494357868,5.4765,3161.7,3161.5,0.49976101]
[1642494358068,4.45741907,3161.6,3161.4,0.126543]
[1642494358272,0.1265,3161.5,3161.4,0.126543]
[1642494358668,0.1265,3161.5,3161.4,0.12767985]
[1642494358868,0.1265,3161.5,3161.4,0.00113685]
[1642494359269,0.1265,3161.5,3161.1,0.00284212]
[1642494359670,0.01215616,3161.2,3161.1,0.00284212]
[1642494359869,5.48865616,3161.2,3161.1,0.00284212]
[1642494360069,5.36215616,3161.2,3161.1,0.00284212]
[1642494360275,5.36215616,3161.2,3160.6,0.00568424]
[1642494360276,0.13865616,3161.2,3160.6,0.00568424]
[1642494360471,0.1265,3161.1,3160.6,0.00568424]
[1642494360712,1.25346846,3161.0,3160.6,1.32337991]
[1642494360916,2.70422539,3161.2,3160.6,1.32337991]
[1642494361118,0.00170527,3160.9,3160.6,2.07937991]
[1642494361315,0.00284212,3161.1,3160.6,2.20587991]
[1642494361512,0.00113685,3160.8,3160.6,2.20587991]
[1642494361713,2.70422539,3161.2,3160.7,3.8]
[1642494361912,2.70422539,3160.9,3160.8,4.41611966]
[1642494362111,0.00170527,3161.1,3160.8,4.2325]
[1642494362313,0.00170527,3161.1,3160.9,4.05]
[1642494362514,1.50737043,3161.6,3161.0,4.9825]
[1642494362719,1.50737043,3161.6,3161.1,1.61735119]
[1642494362917,0.00397896,3161.5,3161.2,0.1265]
[1642494363215,0.00341054,3161.4,3161.3,0.456]
[1642494363817,0.00341054,3161.4,3161.3,0.756]
[1642494364022,0.00341054,3161.4,3161.3,1.095]
[1642494364664,0.01284481,3162.2,3162.0,1.17316726]
[1642494364864,0.01284481,3162.2,3161.5,0.456]
[1642494365064,0.00397897,3162.1,3161.5,0.456]
[1642494365264,0.13047897,3162.1,3161.5,0.456]
[1642494365465,0.00341054,3162.0,3161.5,0.456]
[1642494365864,0.00284212,3161.9,3161.6,1.15963857]
[1642494366265,0.00227369,3161.8,3161.6,1.15963857]
[1642494366470,0.00227369,3161.8,3161.6,1.28613857]
[1642494366765,1.50737043,3162.3,3161.6,1.15963857]
[1642494366766,0.00170527,3161.7,3161.6,1.15963857]
[1642494367164,0.00454739,3161.7,3161.6,1.45963857]
[1642494367865,0.00454739,3161.7,3161.6,1.15963857]
[1642494368069,0.00454739,3161.7,3161.5,0.456]
[1642494368318,0.1265,3161.6,3160.9,0.1265]
[1642494368518,1.0979275,3161.3,3160.9,0.1265]
[1642494368722,1.0979275,3161.3,3161.0,0.00227369]
[1642494368723,0.1265,3161.2,3161.0,0.00227369]
[1642494368917,1.0,3162.2,3162.1,1.0200231]
[1642494368918,3.70926891,3162.2,3162.1,1.0200231]
[1642494369118,3.70926891,3162.2,3161.0,0.00227369]
[1642494369119,5.35,3162.1,3161.0,0.00341054]
[1642494369317,0.00227369,3162.0,3161.0,0.00341054]
[1642494369518,2.25436748,3161.6,3160.8,0.00454739]
[1642494369717,1.368,3161.4,3160.8,0.00454739]
[1642494370119,1.368,3161.4,3161.3,1.26856064]
[1642494370319,1.50241358,3161.0,3160.4,0.00682108]
[1642494370518,1.50241358,3161.0,3160.3,0.75239747]
[1642494371118,1.50241358,3161.0,3160.3,1.05239747]
[1642494371520,1.50241358,3161.0,3160.4,1.17363205]
[1642494371717,1.50241358,3161.0,3160.5,0.1265]
[1642494371973,1.50241358,3161.0,3160.5,0.13275266]
[1642494372171,3.18309221,3160.9,3160.5,0.00625266]
[1642494372372,1.50241358,3161.1,3160.5,0.00625266]
[1642494372373,3.83842313,3161.0,3160.5,0.00625266]
[1642494372570,3.83842313,3161.0,3160.4,0.00682108]
[1642494372970,1.37768526,3161.0,3160.4,0.00682108]
[1642494373375,1.62891358,3161.1,3160.9,1.15366987]
[1642494373577,1.50241358,3161.1,3160.9,1.15366987]
[1642494373775,1.50241358,3161.1,3161.0,0.00341054]
[1642494373980,0.1265,3161.2,3161.0,0.00341054]
[1642494374576,1.36386961,3161.2,3161.0,0.00341054]
[1642494374978,6.92663823,3161.1,3161.0,0.00341054]
[1642494375176,6.92663823,3161.1,3160.1,0.13502635]
[1642494375379,0.1265,3161.0,3160.1,0.00852635]
[1642494375578,0.1265,3161.0,3160.2,0.00795793]
[1642494375814,1.4384322,3160.5,3160.2,1.17642604]
[1642494376014,1.4384322,3160.5,3160.1,0.00852635]
[1642494376214,1.4384322,3160.5,3160.3,0.00738951]
[1642494376422,1.4384322,3160.5,3160.1,0.00852635]
[1642494380672,2.97695759,3160.4,3160.1,0.00852635]
[1642494381073,1.4384322,3160.5,3160.1,0.00852635]
[1642494383413,2.70585591,3160.4,3160.1,0.00852635]
[1642494383817,5.6205561,3160.4,3160.1,0.00852635]
[1642494384421,5.6205561,3160.4,3159.3,0.1265]
[1642494384422,5.35,3160.3,3159.3,0.1265]
[1642494384718,0.01229845,3160.1,3159.3,0.1265]
[1642494384916,1.27205981,3159.9,3159.4,0.00397897]
[1642494385116,2.95956862,3159.8,3159.4,0.00397897]
[1642494385317,1.27205981,3159.9,3159.4,0.00397897]
[1642494385518,1.27205981,3159.9,3159.0,0.00625266]
[1642494385519,4.41958895,3159.8,3159.0,0.00625266]
[1642494385721,4.93500752,3159.8,3159.0,0.00625266]
[1642494385918,4.93500752,3159.8,3158.7,0.00795793]
[1642494385919,0.1265,3159.7,3158.7,0.00795793]
[1642494386119,0.1265,3159.7,3158.3,0.126634]
[1642494386120,0.1265,3159.7,3158.5,0.00909478]
[1642494386319,0.456,3159.6,3158.4,0.0096632]
[1642494386520,0.1265,3159.5,3158.4,0.0096632]
[1642494386719,1.22173499,3159.1,3158.4,0.0096632]
[1642494386974,0.1265,3159.0,3158.4,0.0096632]
[1642494387767,0.1265,3159.0,3158.2,0.49935047]
[1642494387768,1.31974248,3157.5,3157.4,0.1265]
[1642494387965,1.31974248,3157.5,3157.0,0.1265]
[1642494388166,1.0488,3157.7,3157.4,1.48293696]
[1642494388367,3.68383076,3158.3,3157.4,1.48293696]
[1642494388567,0.1265,3158.3,3157.5,0.00511581]
[1642494388769,0.1265,3158.4,3157.5,0.00511581]
[1642494388969,0.1265,3158.6,3157.5,0.00511581]
[1642494389171,1.16178382,3157.7,3157.1,0.00738951]
[1642494389572,0.12763684,3158.6,3157.1,0.00738951]
[1642494389769,0.12763684,3158.6,3157.5,1.31271627]
[1642494389970,0.12763684,3158.6,3157.1,0.00738951]
[1642494390170,18.50763684,3158.6,3157.1,0.00738951]
[1642494390370,3.56925837,3158.5,3157.1,0.00738951]
[1642494390570,0.1265,3158.4,3157.1,0.00738951]
[1642494391020,1.20005662,3157.9,3157.5,1.50554828]
[1642494391216,0.1265,3157.8,3157.5,1.50554828]
[1642494391419,0.1265,3157.8,3157.6,0.00454739]
[1642494391817,0.1265,3157.8,3156.6,0.01023163]
[1642494392019,0.1265,3157.8,3156.7,0.1265]
[1642494392421,0.1265,3157.8,3156.8,0.00909478]
[1642494392618,0.00113684,3158.6,3156.9,0.1265]
[1642494392619,0.1265,3158.4,3156.9,0.1265]
[1642494392819,0.00113684,3158.6,3157.0,0.456]
[1642494393019,0.00113684,3158.6,3157.0,0.76395793]
[1642494393219,0.00113684,3158.6,3157.1,0.00738951]
[1642494393428,0.00113684,3158.6,3158.3,1.18478646]
[1642494393429,1.29558092,3158.5,3158.3,1.18478646]
[1642494393825,1.29558092,3158.5,3157.2,0.456]
[1642494394026,1.29558092,3158.5,3157.2,0.3]
[1642494394027,21.24697964,3158.4,3157.2,0.3]
[1642494394230,0.01211134,3157.6,3157.3,0.00625266]
[1642494394494,0.34566408,3158.2,3157.3,0.00625266]
[1642494394495,0.1265,3157.5,3157.3,0.00625266]
[1642494394785,0.1265,3157.5,3156.4,0.1265]
[1642494394786,1.21819563,3157.7,3156.6,0.01023163]
[1642494394982,3.67173769,3158.1,3156.7,0.1265]
[1642494395180,0.1265,3158.1,3156.7,0.0096632]
[1642494395383,0.1265,3158.1,3157.7,1.4819206]
[1642494395784,5.35,3158.0,3156.8,0.1265]
[1642494395992,2.86697964,3157.9,3156.4,0.1265]
[1642494396183,2.86697964,3157.9,3156.9,0.00511582]
[1642494396184,0.139346,3157.9,3156.9,0.00511582]